bitfinex/quotes_SOLUSD_20240908
["timestamp","ask_amount","ask_price","bid_price","bid_amount"]
[1725812405909,0.8358913,127.48,127.45,50.0]
[1725812408401,6.0221,127.47,127.43,50.0]
[1725812410817,6.0221,127.47,127.44,1.56922126]
[1725812410998,6.0221,127.47,127.43,50.0]
[1725812411196,6.0221,127.47,127.41,50.0]
[1725812411402,45.0,127.46,127.41,50.0]
[1725812411709,15.0877,127.45,127.42,1.56940158]
[1725812411912,15.0877,127.45,127.41,50.0]
[1725812413009,45.0,127.44,127.39,50.0]
[1725812413903,15.0877,127.45,127.39,50.0]
[1725812414102,15.0877,127.45,127.4,1.56951414]
[1725812414411,45.0,127.44,127.39,51.56947113]
[1725812415108,15.0877,127.45,127.39,51.56947113]
[1725812416427,15.0877,127.45,127.39,50.0]
[1725812418212,15.0877,127.45,127.4,1.56949936]
[1725812418427,15.0877,127.45,127.41,1.56949936]
[1725812418630,15.0877,127.45,127.39,51.56949961]
[1725812419301,15.0877,127.45,127.41,50.0]
[1725812420348,15.0877,127.45,127.39,50.0]
[1725812421240,15.0877,127.45,127.4,1.56950998]
[1725812421409,45.0,127.44,127.39,50.0]
[1725812421613,15.0877,127.45,127.39,51.56956578]
[1725812422337,15.0877,127.45,127.41,50.0]
[1725812423152,15.0877,127.45,127.39,1.56956578]
[1725812423153,15.0877,127.45,127.39,50.0]
[1725812423817,45.0,127.44,127.39,50.0]
[1725812425530,45.0,127.44,127.38,8.20762188]
[1725812425835,45.0,127.44,127.38,9.77741191]
[1725812426328,45.0,127.44,127.38,8.20762188]
[1725812427222,6.4473,127.43,127.38,8.20762188]
[1725812427525,45.0,127.42,127.38,8.20762188]
[1725812429527,15.1687,127.41,127.38,8.20762188]
[1725812432852,15.1687,127.41,127.39,50.0]
[1725812433915,6.4473,127.43,127.39,50.0]
[1725812440623,16.0178,127.44,127.4,1.56963422]
[1725812441320,16.0178,127.44,127.39,50.0]
[1725812457227,6.3657,127.46,127.41,50.0]
[1725812457931,6.3657,127.46,127.39,50.0]
[1725812458133,1.83098077,127.45,127.39,50.0]
[1725812458744,46.83098077,127.45,127.39,50.0]
[1725812459850,46.83098077,127.45,127.38,8.20878547]
[1725812461247,16.2533,127.44,127.38,8.20878547]
[1725812461445,45.0,127.43,127.38,8.20878547]
[1725812461844,16.2533,127.44,127.39,50.0]
[1725812462234,45.0,127.43,127.39,50.0]
[1725812463155,16.2533,127.44,127.39,50.0]
[1725812464148,7.1113913,127.48,127.41,50.0]
[1725812464149,16.2533,127.47,127.41,50.0]
[1725812465452,16.2533,127.47,127.43,50.0]
[1725812466156,16.2533,127.47,127.41,50.0]
[1725812467037,16.2533,127.47,127.41,51.56931013]
[1725812467653,16.2533,127.47,127.41,50.0]
[1725812468012,45.0,127.46,127.41,50.0]
[1725812468534,16.2533,127.47,127.43,50.0]
[1725812468766,45.0,127.46,127.43,50.0]
[1725812470465,0.8358913,127.48,127.43,50.0]
[1725812471866,45.8358913,127.48,127.41,50.0]
[1725812472238,45.8358913,127.48,127.41,51.56942583]
[1725812474038,45.8358913,127.48,127.41,50.0]
[1725812476469,45.8358913,127.48,127.42,1.56938814]
[1725812476956,45.8358913,127.48,127.41,50.0]
[1725812477153,45.8358913,127.48,127.42,1.56937608]
[1725812477370,45.8358913,127.48,127.41,50.0]
[1725812477975,52.1113913,127.48,127.41,50.0]
[1725812478360,16.3479,127.47,127.41,50.0]
[1725812478367,45.0,127.46,127.41,50.0]
[1725812478544,45.0,127.46,127.4,8.20537801]
[1725812481135,1.83098077,127.45,127.4,8.20537801]
[1725812481365,45.0,127.46,127.4,8.20537801]
[1725812483844,45.0,127.46,127.4,9.7750195]
[1725812485377,45.0,127.46,127.4,8.20537801]
[1725812490671,45.0,127.46,127.41,50.0]
[1725812491488,16.3479,127.47,127.41,51.56942825]
[1725812491866,16.3479,127.47,127.43,50.0]
[1725812493581,16.3479,127.47,127.41,50.0]
[1725812493771,45.0,127.46,127.41,50.0]
[1725812495474,45.0,127.46,127.41,51.56934657]
[1725812497386,45.0,127.46,127.41,50.0]
[1725812497984,45.0,127.46,127.41,51.56934835]
[1725812498342,16.3479,127.47,127.43,50.0]
[1725812499064,16.3479,127.47,127.44,1.56907593]
[1725812499458,16.3479,127.47,127.43,50.0]
[1725812500276,16.3479,127.47,127.44,1.56916211]
[1725812501065,16.3479,127.47,127.43,50.0]
[1725812501595,16.3479,127.47,127.44,1.56910261]
[1725812502391,16.3479,127.47,127.43,50.0]
[1725812502587,16.3479,127.47,127.41,58.21009943]
[1725812502914,45.0,127.46,127.41,58.21009943]
[1725812504176,45.0,127.46,127.42,1.56936043]
[1725812504870,45.0,127.46,127.41,59.77937914]
[1725812505071,16.3479,127.47,127.41,58.21009943]
[1725812505284,45.0,127.46,127.41,58.21009943]
[1725812505967,45.0,127.46,127.42,1.56933673]
[1725812506294,45.0,127.46,127.41,59.77939955]
[1725812507294,45.0,127.46,127.41,58.21009943]
[1725812508878,16.3479,127.47,127.43,50.0]
[1725812510973,16.3479,127.47,127.44,1.56924284]
[1725812511388,16.3479,127.47,127.43,51.56916385]
[1725812511696,16.3479,127.47,127.43,50.0]
[1725812512604,0.8358913,127.48,127.43,51.56908499]
[1725812512794,45.8358913,127.48,127.43,51.56908499]
[1725812513411,45.8358913,127.48,127.44,1.5690849]
[1725812513792,45.8358913,127.48,127.45,50.0]
[1725812513793,0.8358913,127.48,127.45,50.0]
[1725812514104,0.8358913,127.48,127.45,51.56883625]
[1725812514303,0.8358913,127.48,127.45,50.0]
[1725812515345,0.8358913,127.48,127.46,1.56891046]
[1725812516498,0.8358913,127.48,127.47,50.0]
[1725812517591,0.8358913,127.48,127.45,50.0]
[1725812517979,0.8358913,127.48,127.47,50.0]
[1725812520104,0.8358913,127.48,127.45,50.0]
[1725812520302,0.8358913,127.48,127.46,20.0]
[1725812521017,0.8358913,127.48,127.47,50.0]
[1725812525908,0.8358913,127.48,127.44,8.20715954]
[1725812526214,0.8358913,127.48,127.45,50.0]
[1725812526387,0.8358913,127.48,127.44,8.20715954]
[1725812530921,0.8358913,127.48,127.44,9.77635393]
[1725812531795,0.8358913,127.48,127.45,50.0]
[1725812534313,0.8358913,127.48,127.44,8.20705786]
[1725812535016,0.8358913,127.48,127.44,9.77626177]
[1725812535916,0.8358913,127.48,127.44,8.20705786]
[1725812537093,0.8358913,127.48,127.44,9.77620159]
[1725812537305,0.8358913,127.48,127.44,8.20705786]
[1725812537605,0.8358913,127.48,127.44,9.77625142]
[1725812537925,0.8358913,127.48,127.45,50.0]
[1725812539519,0.8358913,127.48,127.44,8.20705786]
[1725812539719,45.8358913,127.48,127.44,8.20705786]
[1725812541424,0.8358913,127.48,127.44,8.20705786]
[1725812545527,45.8358913,127.48,127.44,8.20705786]
[1725812546014,45.8358913,127.48,127.41,50.0]
[1725812546215,45.8358913,127.48,127.41,58.21167699]
[1725812553457,22.3873,127.47,127.41,8.21167699]
[1725812553729,8.10748077,127.46,127.41,8.21167699]
[1725812553928,15.9463,127.43,127.37,50.0]
[1725812554153,1.83098077,127.42,127.37,50.0]
[1725812554316,45.0,127.42,127.34,50.0]
[1725812554519,22.3873,127.4,127.34,50.0]
[1725812554714,22.3873,127.4,127.35,8.21638942]
[1725812554715,46.83098077,127.39,127.35,8.21638942]
[1725812554928,45.0,127.39,127.35,8.21638942]
[1725812555445,45.0,127.39,127.32,50.0]
[1725812555738,45.0,127.39,127.33,8.21795087]
[1725812556814,45.0,127.39,127.3,50.0]
[1725812557336,45.0,127.39,127.31,8.21831949]
[1725812557721,45.0,127.39,127.32,50.0]
[1725812558322,45.0,127.39,127.32,51.57058694]
[1725812559020,45.0,127.39,127.34,50.0]
[1725812559465,22.3873,127.4,127.34,50.0]
[1725812559472,22.3873,127.4,127.35,1.57011815]
[1725812560827,22.3873,127.4,127.34,51.57007265]
[1725812561137,22.3873,127.4,127.34,50.0]
[1725812561331,22.3873,127.4,127.36,50.0]
[1725812562501,22.3873,127.4,127.32,1.57015624]
[1725812562502,22.3873,127.4,127.34,50.0]
[1725812565037,45.0,127.39,127.34,50.0]
[1725812567825,45.0,127.39,127.32,58.21653538]
[1725812572248,15.9358,127.38,127.32,58.21653538]
[1725812572503,45.0,127.37,127.32,8.21653538]
[1725812572648,6.5453,127.36,127.32,8.21653538]
[1725812572934,45.0,127.35,127.3,50.0]
[1725812573135,45.0,127.35,127.3,58.21749721]
[1725812573642,45.0,127.35,127.3,8.21749721]
[1725812574640,15.9358,127.34,127.3,8.21749721]
[1725812577443,15.9358,127.34,127.3,58.21749721]
[1725812577975,6.5453,127.36,127.31,1.570712]
[1725812578746,4.41677031,127.36,127.31,1.570712]
[1725812581059,4.41677031,127.36,127.3,58.21749721]
[1725812583348,4.41677031,127.36,127.31,1.5706388]
[1725812583548,4.41677031,127.36,127.3,58.21749721]
[1725812583741,4.41677031,127.36,127.3,50.0]
[1725812583939,4.41677031,127.36,127.3,58.20935952]
[1725812584136,4.41677031,127.36,127.31,1.57059518]
[1725812584353,4.41677031,127.36,127.32,1.57058358]
[1725812584659,4.41677031,127.36,127.3,58.20935952]
[1725812586137,4.41677031,127.36,127.31,1.57060475]
[1725812586458,4.41677031,127.36,127.3,58.20935952]
[1725812586650,45.0,127.35,127.3,58.20935952]
[1725812588854,45.0,127.35,127.3,8.20935952]
[1725812594656,45.0,127.35,127.31,1.57088712]
[1725812595765,45.0,127.35,127.3,58.18134706]
[1725812595962,4.41677031,127.36,127.3,58.18134706]
[1725812596348,45.0,127.35,127.3,58.18134706]
[1725812596748,15.9358,127.37,127.32,50.0]
[1725812598961,15.9358,127.37,127.34,50.0]
[1725812599475,15.9358,127.37,127.32,50.0]
[1725812600386,15.9358,127.37,127.32,51.57041149]
[1725812600876,15.9358,127.37,127.34,50.0]
[1725812601170,6.2838,127.39,127.35,1.57028036]
[1725812601361,16.0285,127.4,127.36,50.0]
[1725812601554,16.0285,127.4,127.37,1.57003483]
[1725812602565,22.3123,127.43,127.37,1.57003483]
[1725812602876,22.3123,127.43,127.36,50.0]
[1725812603873,45.0,127.42,127.36,50.0]
[1725812604350,45.0,127.42,127.34,50.0]
[1725812604575,45.0,127.42,127.35,20.0]
[1725812605259,45.0,127.42,127.36,1.5701254]
[1725812605468,45.0,127.42,127.35,20.0]
[1725812606554,45.0,127.42,127.34,50.0]
[1725812608771,16.0285,127.41,127.34,50.0]
[1725812608957,45.0,127.4,127.34,50.0]
[1725812609353,45.0,127.4,127.35,1.57024304]
[1725812609681,45.0,127.4,127.34,50.0]
[1725812611281,45.0,127.4,127.35,1.57024842]
[1725812611577,45.0,127.4,127.34,50.0]
[1725812612261,45.0,127.4,127.35,1.57024389]
[1725812612458,45.0,127.4,127.34,50.0]
[1725812615684,45.0,127.4,127.32,50.0]
[1725812615985,46.83098077,127.4,127.33,28.14891926]
[1725812616165,46.83098077,127.4,127.33,8.14891926]
[1725812616474,45.0,127.4,127.33,8.14891926]
[1725812616678,46.83098077,127.4,127.33,8.14891926]
[1725812617071,45.0,127.4,127.33,8.14891926]
[1725812617872,45.0,127.4,127.34,50.0]
[1725812618189,46.83098077,127.4,127.33,8.14891926]
[1725812618359,6.1735,127.39,127.33,8.14891926]
[1725812618562,45.0,127.38,127.33,8.14891926]
[1725812620533,16.2319,127.37,127.33,8.14891926]
[1725812625279,16.2319,127.37,127.34,50.0]
[1725812627986,16.2319,127.37,127.33,8.11366615]
[1725812637295,16.2319,127.37,127.34,51.57042796]
[1725812637584,16.5871,127.41,127.36,50.0]
[1725812639787,16.5871,127.41,127.38,50.0]
[1725812641898,16.5871,127.41,127.36,50.0]
[1725812642073,45.0,127.4,127.36,50.0]
[1725812642492,45.0,127.4,127.34,50.0]
[1725812642699,46.83098077,127.4,127.34,50.0]
[1725812642892,45.0,127.4,127.34,50.0]
[1725812644182,45.0,127.4,127.35,1.57019053]
[1725812644896,16.5871,127.41,127.36,50.0]
[1725812645086,16.5871,127.41,127.37,1.56988784]
[1725812645786,16.5871,127.41,127.38,50.0]
[1725812648901,16.5871,127.41,127.36,50.0]
[1725812651697,16.5871,127.41,127.34,8.12273426]
[1725812651698,45.0,127.4,127.34,58.12273426]
[1725812653577,45.0,127.4,127.34,8.12273426]
[1725812653777,45.0,127.4,127.34,58.12273426]
[1725812663179,16.5871,127.41,127.36,50.0]
[1725812663501,16.5871,127.41,127.38,50.0]
[1725812667495,15.10289432,127.43,127.4,50.0]
[1725812667684,16.1895,127.44,127.4,50.0]
[1725812668120,16.1895,127.44,127.41,1.56938934]
[1725812668609,16.1895,127.47,127.41,1.56938934]
[1725812669330,45.0,127.46,127.41,1.56938934]
[1725812670110,16.1895,127.47,127.42,50.0]
[1725812670412,16.1895,127.47,127.43,21.56910784]
[1725812670720,16.1895,127.47,127.44,1.56910467]
[1725812670900,16.1895,127.47,127.43,20.0]
[1725812671115,16.1895,127.47,127.44,1.56918229]
[1725812671698,16.1895,127.47,127.43,20.0]
[1725812672604,16.1895,127.47,127.44,1.56914693]
[1725812673200,16.1895,127.47,127.44,50.0]
[1725812674622,0.8358913,127.48,127.44,50.0]
[1725812676324,0.8358913,127.48,127.44,51.56892473]
[1725812677194,0.8358913,127.48,127.46,50.0]
[1725812678607,0.8358913,127.48,127.47,20.0]
[1725812683094,0.8358913,127.48,127.46,50.0]
[1725812688115,0.8358913,127.48,127.47,20.0]
[1725812693529,0.8358913,127.48,127.47,21.56877688]
[1725812696410,0.8358913,127.48,127.47,20.0]
[1725812704640,0.8358913,127.48,127.47,21.56861645]
[1725812704819,0.8358913,127.48,127.47,20.0]
[1725812708819,0.8358913,127.48,127.44,58.11635023]
[1725812709620,45.8358913,127.48,127.44,58.11635023]
[1725812710840,45.8358913,127.48,127.44,8.11635023]
[1725812720477,0.8358913,127.48,127.44,58.11635023]
[1725812722455,0.8358913,127.48,127.45,1.56894003]
[1725812722947,0.8358913,127.48,127.44,50.0]
[1725812723153,0.8358913,127.48,127.44,58.11825071]
[1725812724236,0.8358913,127.48,127.44,8.11825071]
[1725812724237,45.8358913,127.48,127.44,8.11825071]
[1725812724439,47.66687207,127.48,127.44,8.11825071]
[1725812725357,45.8358913,127.48,127.44,8.11825071]
[1725812727442,45.8358913,127.48,127.42,50.0]
[1725812727638,45.8358913,127.48,127.43,20.0]
[1725812731573,45.8358913,127.48,127.44,1.56912838]
[1725812732914,45.8358913,127.48,127.43,20.0]
[1725812742059,45.8358913,127.48,127.43,21.56925364]
[1725812742483,0.8358913,127.48,127.44,50.0]
[1725812743544,0.8358913,127.48,127.43,20.0]
[1725812743861,0.8358913,127.48,127.44,50.0]
[1725812744464,45.8358913,127.48,127.44,50.0]
[1725812744644,0.8358913,127.48,127.44,50.0]
[1725812761806,45.8358913,127.48,127.44,50.0]
[1725812762354,45.8358913,127.48,127.43,28.14549062]
[1725812766046,0.8358913,127.48,127.46,50.0]
[1725812767075,0.8358913,127.48,127.47,1.56875299]
[1725812767871,0.8358913,127.48,127.46,50.0]
[1725812775164,0.8358913,127.48,127.44,58.14394992]
[1725812775367,0.8358913,127.48,127.46,50.0]
[1725812777880,0.8358913,127.48,127.44,58.14394992]
[1725812778085,0.8358913,127.48,127.45,20.0]
[1725812779090,0.8358913,127.48,127.46,50.0]
[1725812780269,0.8358913,127.48,127.45,20.0]
[1725812782570,0.8358913,127.48,127.46,1.56892719]
[1725812783281,0.8358913,127.48,127.45,20.0]
[1725812784086,0.8358913,127.48,127.45,21.56890795]
[1725812784288,0.8358913,127.48,127.46,1.56890795]
[1725812784806,0.8358913,127.48,127.46,50.0]
[1725812810602,0.8358913,127.48,127.47,20.0]
[1725812814209,0.8358913,127.48,127.46,50.0]
[1725812814703,0.8358913,127.48,127.44,58.17159804]
[1725812814797,0.8358913,127.48,127.45,20.0]
[1725812817220,0.8358913,127.48,127.46,51.56882567]
[1725812818514,0.8358913,127.48,127.46,50.0]
[1725812821790,0.8358913,127.48,127.45,20.0]
[1725812823006,0.8358913,127.48,127.45,21.56896525]
[1725812823192,0.8358913,127.48,127.46,1.5688513]
[1725812823598,0.8358913,127.48,127.46,50.0]
[1725812825419,0.8358913,127.48,127.45,20.0]
[1725812826217,0.8358913,127.48,127.46,50.0]
[1725812826620,0.8358913,127.48,127.45,20.0]
[1725812829123,0.8358913,127.48,127.46,50.0]
[1725812830421,0.8358913,127.48,127.45,20.0]
[1725812835428,0.8358913,127.48,127.46,1.56889376]
[1725812836117,0.8358913,127.48,127.45,21.56883425]
[1725812837277,0.8358913,127.48,127.44,58.16526346]
[1725812837411,16.8778913,127.48,127.44,8.16526346]
[1725812837800,16.8778913,127.48,127.42,50.0]
[1725812838005,1.83098077,127.47,127.43,8.19923378]
[1725812838222,1.83098077,127.47,127.38,50.0]
[1725812838223,46.83098077,127.47,127.38,50.0]
[1725812838434,16.042,127.46,127.38,50.0]
[1725812838622,45.0,127.45,127.4,8.20076156]
[1725812838834,46.83098077,127.45,127.4,8.20076156]
[1725812843146,45.0,127.45,127.4,8.20076156]
[1725812861425,45.0,127.45,127.4,9.77037536]
[1725812862550,45.0,127.45,127.4,8.20076156]
[1725812867648,6.111,127.44,127.4,8.20076156]
[1725812867848,45.0,127.43,127.4,8.20076156]
[1725812869052,46.83098077,127.43,127.4,8.20076156]
[1725812870050,45.0,127.43,127.4,8.20076156]
[1725812877839,16.5257,127.42,127.36,50.0]
[1725812878194,16.5257,127.42,127.38,8.19175938]
[1725812878457,45.0,127.41,127.38,8.19175938]
[1725812880556,46.83098077,127.41,127.38,8.19175938]
[1725812880866,1.83098077,127.4,127.38,8.19175938]
[1725812882257,45.0,127.41,127.38,8.19175938]
[1725812882588,16.5257,127.42,127.39,1.57011757]
[1725812882770,16.5257,127.42,127.38,59.76155249]
[1725812883054,16.5257,127.42,127.38,58.19175938]
[1725812883649,16.5257,127.42,127.39,1.56978335]
[1725812884071,16.5257,127.42,127.38,58.19175938]
[1725812889065,6.111,127.44,127.38,58.19175938]
[1725812889312,45.0,127.43,127.38,58.19175938]
[1725812895377,16.5257,127.45,127.4,50.0]
[1725812896262,16.5257,127.45,127.41,1.56952416]
[1725812896874,45.0,127.44,127.41,1.56952416]
[1725812899779,6.0954,127.47,127.41,1.56954017]
[1725812899983,16.7177913,127.48,127.42,50.0]
[1725812901373,45.0,127.47,127.42,50.0]
[1725812902079,45.0,127.47,127.4,50.0]
[1725812902863,45.0,127.47,127.41,1.56943828]
[1725812904969,45.0,127.47,127.4,50.0]
[1725812907202,46.83098077,127.47,127.4,50.0]
[1725812907379,46.83098077,127.47,127.39,8.18900918]
[1725812907874,45.0,127.47,127.4,50.0]
[1725812908266,45.0,127.47,127.39,8.18900918]
[1725812908820,45.0,127.47,127.4,50.0]
[1725812908930,45.0,127.47,127.39,8.18900918]
[1725812913499,45.0,127.47,127.4,1.56959317]
[1725812914376,6.217,127.46,127.39,8.18900918]
[1725812914689,45.0,127.45,127.39,8.18900918]
[1725812916586,15.7712,127.44,127.39,8.18900918]
[1725812916900,45.0,127.43,127.39,8.18900918]
[1725812917088,46.83098077,127.43,127.39,8.18900918]
[1725812917403,45.0,127.43,127.39,8.18900918]
[1725812922284,45.0,127.43,127.36,50.0]
[1725812922485,45.0,127.43,127.37,8.18889574]
[1725812926193,45.0,127.43,127.38,1.56995947]
[1725812926697,45.0,127.43,127.37,8.18889574]
[1725812927505,45.0,127.43,127.38,1.56988578]
[1725812928000,45.0,127.43,127.37,8.18889574]
[1725812930107,6.217,127.42,127.37,8.18889574]
[1725812930305,45.0,127.41,127.37,8.18889574]
[1725812933993,15.7712,127.44,127.38,51.56992923]
[1725812936102,15.7712,127.44,127.38,50.0]
[1725812937511,16.6146,127.47,127.41,50.0]
[1725812939017,0.8358913,127.48,127.46,50.0]
[1725812941008,0.8358913,127.48,127.44,50.0]
[1725812942011,0.8358913,127.48,127.44,51.56891881]
[1725812944691,0.8358913,127.48,127.46,50.0]
[1725812945603,0.8358913,127.48,127.44,50.0]
[1725812945811,0.8358913,127.48,127.44,51.56889474]
[1725812948297,0.8358913,127.48,127.47,50.0]
[1725812948531,0.8358913,127.48,127.47,92.0067]
[1725812948891,0.8358913,127.48,127.47,70.0]
[1725812949204,0.8358913,127.48,127.45,50.0]
[1725812949428,0.8358913,127.48,127.46,20.0]
[1725812950199,0.8358913,127.48,127.47,50.0]
[1725812952323,0.8358913,127.48,127.46,20.0]
[1725812954122,0.8358913,127.48,127.46,21.56878117]
[1725812955507,0.8358913,127.48,127.47,50.0]
[1725812955733,0.8358913,127.48,127.47,51.56854307]
[1725812956125,0.8358913,127.48,127.47,50.0]
[1725812956625,0.8358913,127.48,127.47,51.56866251]
[1725812957425,0.8358913,127.48,127.47,73.37046251]
[1725812957619,0.8358913,127.48,127.47,138.37046251]
[1725812957924,0.8358913,127.48,127.47,157.19057214]
[1725812958522,0.8358913,127.48,127.47,146.94508904]
[1725812960910,0.8358913,127.48,127.47,157.19057214]
[1725812981441,0.8358913,127.48,127.47,135.38877214]
[1725812997539,0.8358913,127.48,127.47,135.47877214]
[1725812997741,0.8358913,127.48,127.47,135.38877214]
[1725813000260,0.8358913,127.48,127.47,90.38877214]
[1725813001765,0.8358913,127.48,127.47,135.38877214]
[1725813003539,0.8358913,127.48,127.47,70.38877214]
[1725813003837,0.8358913,127.48,127.47,50.0]
[1725813005658,0.8358913,127.48,127.47,70.0]
[1725813010059,6.1501913,127.52,127.5,50.0]
[1725813011670,6.1501913,127.52,127.48,50.0]
[1725813011910,6.1501913,127.52,127.49,20.0]
[1725813016170,6.1501913,127.52,127.49,21.56838129]
[1725813016476,6.1501913,127.52,127.49,20.0]
[1725813019669,6.1501913,127.52,127.48,50.0]
[1725813020053,6.1501913,127.52,127.47,8.18450316]
[1725813020251,6.1501913,127.52,127.48,20.0]
[1725813020978,6.1501913,127.52,127.48,21.56863505]
[1725813021702,6.1501913,127.52,127.48,20.0]
[1725813022275,6.1501913,127.52,127.48,21.56863286]
[1725813028078,6.1501913,127.52,127.48,20.0]
[1725813028250,6.1501913,127.52,127.48,21.56862836]
[1725813030856,6.1501913,127.52,127.5,50.0]
[1725813031074,16.0908,127.55,127.51,21.56835104]
[1725813031264,6.5818,127.57,127.54,50.0]
[1725813032882,6.5818,127.57,127.52,50.0]
[1725813033062,6.5818,127.57,127.54,50.0]
[1725813033659,6.5818,127.57,127.53,20.0]
[1725813033868,6.5818,127.57,127.53,21.56789123]
[1725813034371,6.5818,127.57,127.53,20.0]
[1725813035495,45.0,127.56,127.52,50.0]
[1725813037088,45.0,127.56,127.5,50.0]
[1725813037266,45.0,127.56,127.51,20.0]
[1725813040669,15.1409,127.55,127.5,50.0]
[1725813041273,45.0,127.54,127.5,50.0]
[1725813042268,15.1409,127.55,127.5,50.0]
[1725813049285,45.0,127.54,127.5,50.0]
[1725813051897,15.1409,127.55,127.5,50.0]
[1725813051898,15.1409,127.55,127.51,1.56834194]
[1725813052073,15.1409,127.55,127.5,50.0]
[1725813055294,45.0,127.54,127.5,50.0]
[1725813056916,6.5818,127.57,127.52,50.0]
[1725813057203,6.5818,127.57,127.53,1.56791968]
[1725813057895,15.4587,127.58,127.53,1.56791968]
[1725813058335,45.0,127.57,127.53,1.56791968]
[1725813059203,15.4587,127.58,127.53,1.56791968]
[1725813060284,15.4587,127.58,127.52,50.0]
[1725813060686,45.0,127.57,127.52,50.0]
[1725813060888,15.4587,127.58,127.52,50.0]
[1725813061104,15.4587,127.58,127.54,50.0]
[1725813061403,18.82837115,127.59,127.54,50.0]
[1725813064284,18.82837115,127.59,127.56,50.0]
[1725813065989,0.8358913,127.61,127.58,50.0]
[1725813066205,0.8358913,127.61,127.59,21.56715948]
[1725813066602,0.8358913,127.61,127.59,20.0]
[1725813067181,0.8358913,127.61,127.58,50.0]
[1725813068704,0.8358913,127.61,127.59,20.0]
[1725813069291,0.8358913,127.61,127.6,1.56716102]
[1725813069507,0.8358913,127.61,127.6,51.56716102]
[1725813069723,0.8358913,127.61,127.6,71.56716102]
[1725813070215,0.8358913,127.61,127.6,70.0]
[1725813072537,0.8358913,127.61,127.6,71.5668949]
[1725813074005,0.8358913,127.61,127.6,70.0]
[1725813074419,0.8358913,127.61,127.6,71.56679969]
[1725813075291,0.8358913,127.61,127.6,116.56679969]
[1725813076591,0.8358913,127.61,127.6,71.5665355]
[1725813076792,0.8358913,127.61,127.6,70.0]
[1725813077115,0.8358913,127.61,127.6,71.56681237]
[1725813077421,0.8358913,127.61,127.6,70.0]
[1725813077896,0.8358913,127.61,127.6,71.56674001]
[1725813078916,0.8358913,127.61,127.6,70.0]
[1725813080014,0.8358913,127.61,127.6,71.56666079]
[1725813080206,0.8358913,127.61,127.6,70.0]
[1725813080389,0.8358913,127.61,127.6,115.0]
[1725813080598,0.8358913,127.61,127.6,71.56655923]
[1725813081121,0.8358913,127.61,127.6,116.56655923]
[1725813081324,0.8358913,127.61,127.6,71.56655923]
[1725813081491,0.8358913,127.61,127.6,70.0]
[1725813085504,0.8358913,127.61,127.6,71.56677351]
[1725813086216,0.8358913,127.61,127.6,70.0]
[1725813088421,0.8358913,127.61,127.6,71.56673498]
[1725813089511,0.8358913,127.61,127.6,70.0]
[1725813103134,0.3358913,127.61,127.6,70.0]
[1725813106541,0.3358913,127.61,127.6,115.0]
[1725813109032,0.3358913,127.61,127.6,116.56653614]
[1725813136351,16.5079,127.68,127.6,116.56653614]
[1725813136564,11.8437913,127.68,127.64,50.0]
[1725813136851,11.8437913,127.68,127.65,20.0]
[1725813137242,11.8437913,127.68,127.66,50.0]
[1725813141863,6.1986,127.69,127.66,50.0]
[1725813142038,6.1986,127.69,127.68,50.0]
[1725813143047,6.1986,127.69,127.67,20.0]
[1725813145858,15.3136,127.71,127.67,20.0]
[1725813148744,45.0,127.7,127.64,50.0]
[1725813148939,45.0,127.7,127.65,20.0]
[1725813150149,21.3739,127.69,127.62,50.0]
[1725813150367,45.0,127.68,127.62,50.0]
[1725813151506,45.0,127.68,127.63,20.0]
[1725813154253,21.3739,127.69,127.64,50.0]
[1725813154468,45.0,127.68,127.64,50.0]
[1725813155250,45.0,127.68,127.64,51.56660426]